Cogmind - Beta 16.1 @@@ ROGUE MODE // 2026.02.20 @ 22:22:42 Player: shockman27 Result: Destroyed by X-87 Electro with Compact HERF Cannon Performance ------------- Evolutions (9) 4500 Regions Visited (29) 5800 Robots Destroyed (339) 1695 Value Destroyed (13870) 13870 Prototype IDs (62) 1240 Alien Tech Used (0) 0 Bonus (6857) 6857 TOTAL SCORE: 33962 Bonus ------- High Alert Combat Kills 1395 Follower Combat Kills 2184 Entered Garrisons 1000 Used RIF Installer 1500 Entered DSFs 500 Aligned with FarCom 300 Friendly Fire -22 Cogmind --------- Core Integrity 0/1600 Matter 191/300 Energy 100/100 System Corruption 32% Temperature Cool (0) Movement Core (50) Location -1/Garrison Parts ------- > --- POWER (2) -------- (None) > --- PROPULSION (7) --- (None) > --- UTILITY (13) ----- Advanced Targeting Computer Graphene Brace Improved System Shield > --- WEAPON (3) ------- (None) > --- INVENTORY (5) ---- Quantum Reactor Antigrav System Combat Linear Gravjet Combat Linear Gravjet Relay Coupler [NC] (32) Peak State ------------ > --- POWER ------------ Light Fission Core Light Quantum Reactor > --- PROPULSION ------- Cooled Linear Gravjet Combat Linear Gravjet Combat Linear Gravjet Combat Linear Gravjet Combat Linear Gravjet Combat Linear Gravjet > --- UTILITY ---------- Advanced Heat Sink Experimental Cooling System Medium Storage Unit Advanced Targeting Computer Advanced Reaction Control System Medium Insulated Plating Graphene Brace Relay Coupler [Swarmer] Relay Coupler [Proto] Relay Coupler [Proto] Relay Coupler [Proto] Relay Coupler [Proto] > --- WEAPON ----------- Enhanced Quantum Rifle Advanced Concussive RPG Advanced Remote Datajack > --- INVENTORY -------- Micro Fission Core Improved Antigrav System Improved Antigrav System Cooled Linear Gravjet Long-range Terrain Scanner Advanced Transmission Jammer Long-range Proton Cannon Enhanced Nova Cannon Enhanced Hardcell Cannon [Rating: 173] Favorites ----------- Power Nuclear Core Engine Cooled Ion Engine Power Core Nuclear Core Reactor Quantum Reactor Propulsion Medium Treads Treads Medium Treads Leg Aluminum Leg Wheel Wheel Hover Unit Combat Linear Gravjet Flight Unit Impulse Thruster Array Utility Hacking Suite Device Advanced Heat Sink Storage High-capacity Storage Unit Processor Advanced Targeting Computer Hackware Hacking Suite Protection Hardened Medium Armor Plating Weapon Improved Assault Rifle Energy Gun Precision Phase Gun Energy Cannon Heavy Particle Cannon Ballistic Gun Improved Assault Rifle Ballistic Cannon Heavy Assault Cannon Launcher Long-range Missile Launcher Special Weapon Advanced Remote Datajack Impact Weapon Shock Maul Slashing Weapon Katana Special Melee Weapon Improved Datajack Build | -11 -10 -10 -9 -9 -9 -8 -8 -8 -8 -8 -8 -8 -6 -6 -6 -5 -4 -4 -4 -4 -4 -3 -3 -2 -2 -2 -2 -1 -1 ------- Run | Yrd Mat Min Mat Min Exi Min Mat Gar Mat Sto Rec Scr Fac Low Low Fac Fac Gar Fac Upp Upp Res DSF Res Gar Res Gar Acc Gar Slots Evolved 18 | . . . 2 . . . 2 . . . . . 4 . . 2 2 . . . . 2 . 2 . . . 2 . Power 1 | . . . . . . . . . . . . . 1 . . . . . . . . . . . . . . . . Propulsion 5 | . . . 1 . . . 1 . . . . . 1 . . 1 . . . . . . . . . . . 1 . Utility 11 | . . . 1 . . . 1 . . . . . 2 . . 1 1 . . . . 2 . 2 . . . 1 . Weapon 1 | . . . . . . . . . . . . . . . . . 1 . . . . . . . . . . . . Parts Attached 297 | 7 14 2 15 . 1 1 28 14 19 8 2 9 17 7 . 5 3 30 2 2 . 8 15 11 13 9 37 18 . Power 42 | 1 2 . 3 . . . 4 . 1 1 . . 3 1 . . . 9 1 . . 1 2 1 2 1 4 5 . Engine 13 | 1 2 . 3 . . . 2 . 1 . . . . . . . . 4 . . . . . . . . . . . Core 13 | . . . . . . . 2 . . 1 . . 3 1 . . . 2 . . . 1 . . . . 3 . . Reactor 16 | . . . . . . . . . . . . . . . . . . 3 1 . . . 2 1 2 1 1 5 . Propulsion 66 | 2 2 . 3 . . . 11 9 8 2 . . 6 . . 1 . 5 . 1 . 2 6 1 . 1 1 5 . Treads 39 | 2 2 . 3 . . . 10 8 7 . . . 1 . . . . 5 . 1 . . . . . . . . . Leg 1 | . . . . . . . . 1 . . . . . . . . . . . . . . . . . . . . . Wheel 2 | . . . . . . . . . 1 1 . . . . . . . . . . . . . . . . . . . Hover 21 | . . . . . . . . . . . . . 5 . . 1 . . . . . 2 6 1 . 1 1 4 . Flight 3 | . . . . . . . 1 . . 1 . . . . . . . . . . . . . . . . . 1 . Utility 120 | 2 6 . 3 . . 1 4 3 4 1 1 4 6 4 . 2 3 11 1 . . 4 6 7 10 7 26 4 . Device 49 | 1 . . . . . . 1 1 . 1 . 2 5 1 . . 1 5 . . . 2 3 5 4 6 9 2 . Storage 7 | 1 2 . . . . . . . 2 . . 1 . . . . . 1 . . . . . . . . . . . Processor 9 | . . . 2 . . 1 1 . . . . 1 . . . 1 1 . . . . . . . . . 1 1 . Hackware 34 | . . . . . . . 1 . 1 . . . 1 1 . . 1 3 1 . . 2 1 2 5 1 13 1 . Protection 21 | . 4 . 1 . . . 1 2 1 . 1 . . 2 . 1 . 2 . . . . 2 . 1 . 3 . . Artifact . | . . . . . . . . . . . . . . . . . . . . . . . . . . . . . . Weapon 69 | 2 4 2 6 . 1 . 9 2 6 4 1 5 2 2 . 2 . 5 . 1 . 1 1 2 1 . 6 4 . Energy Gun 13 | 1 . 1 . . . . 2 . 1 2 . 1 . . . . . 1 . . . . . 1 . . 2 1 . Energy Cannon 13 | . 2 . . . . . 4 1 1 1 . 1 1 . . . . . . . . . 1 1 . . . . . Ballistic Gun 20 | 1 1 1 3 . 1 . 2 . 3 . . 1 . 1 . 1 . 3 . . . 1 . . . . . 1 . Ballistic Cannon 4 | . . . 1 . . . . . . . . . . . . . . 1 . . . . . . . . 1 1 . Launcher 5 | . 1 . 1 . . . . . 1 . . 1 . . . . . . . . . . . . . . 1 . . Special Weapon 5 | . . . . . . . . . . . . . 1 . . 1 . . . . . . . . 1 . 1 1 . Impact Weapon 3 | . . . 1 . . . . . . 1 . . . . . . . . . 1 . . . . . . . . . Slashing Weapon 5 | . . . . . . . 1 . . . 1 1 . 1 . . . . . . . . . . . . 1 . . Piercing Weapon . | . . . . . . . . . . . . . . . . . . . . . . . . . . . . . . Special Melee Weapon 1 | . . . . . . . . 1 . . . . . . . . . . . . . . . . . . . . . Unidentified Prototypes 20 | . . . 1 . . . 4 . 3 4 . . 1 . . . . 1 . . . 1 2 2 . 1 . . . Corrupted Parts 2 | . . . . . . . . . . 1 . . . . . . . . . . . . . . . . . 1 . System Corruption 13 | . . . . . . . . . . 4 . . . . . . . . . . . . . . . . . 9 . Parts Lost 84 | . . 1 2 . . . 5 5 . . . . 8 . . . . 8 . 1 . . 1 2 9 . 12 29 1 Power 12 | . . . . . . . . . . . . . 1 . . . . 4 . . . . . . 1 . 3 3 . Propulsion 22 | . . . 1 . . . 3 3 . . . . 5 . . . . . . . . . 1 . . . 1 7 1 Utility 35 | . . . 1 . . . 2 1 . . . . 1 . . . . 2 . . . . . 2 7 . 6 13 . Weapon 15 | . . 1 . . . . . 1 . . . . 1 . . . . 2 . 1 . . . . 1 . 2 6 . Highest Loss Streak 9 | . . 1 1 . . . 2 1 . . . . 5 . . . . 4 . 1 . . 1 1 3 . 8 9 1 To Critical Strikes . | . . . . . . . . . . . . . . . . . . . . . . . . . . . . . . Average Backups 17 | 3 14 14 17 20 19 19 18 18 18 18 19 18 18 9 9 8 9 21 27 26 25 15 9 9 9 10 9 7 5 Power 1 | . 1 1 1 1 1 1 1 1 1 1 1 1 . . . . . . 2 2 2 1 1 1 1 1 1 . 1 Propulsion 4 | . 2 3 3 4 4 4 3 7 6 6 6 5 5 2 2 1 1 8 7 6 6 1 . 1 2 2 2 . 3 Utility 4 | . 4 7 4 4 4 4 3 3 4 5 5 5 3 . . . . 6 10 10 11 7 3 1 1 1 2 2 1 Weapon 6 | 1 5 3 7 11 10 10 9 6 5 5 6 6 5 4 5 5 6 4 7 5 4 3 3 4 3 4 3 2 . Tool/Special . | . . . . . . . . . . . . . . . . . . . . . . . . . . . . . . Unused Backups 68 | . 13 . 7 . 1 . 17 3 2 1 . 2 . . . . . 6 . 1 . 2 . 1 2 3 2 4 1 Power 10 | . 1 . 3 . . . 1 1 . 1 . . . . . . . . . . . . . . . 1 1 1 . Propulsion 17 | . 3 . 2 . . . 6 1 1 . . . . . . . . . . . . . . . 1 1 1 1 . Utility 17 | . 1 . 2 . . . 4 1 1 . . 1 . . . . . 5 . . . 1 . . . . . . 1 Weapon 24 | . 8 . . . 1 . 6 . . . . 1 . . . . . 1 . 1 . 1 . 1 1 1 . 2 . Tool/Special . | . . . . . . . . . . . . . . . . . . . . . . . . . . . . . . Average Slot Usage (%) 94 | . 99 100 99 100 100 100 99 97 99 99 99 99 95 95 100 97 92 73 73 73 78 83 97 99 91 98 94 75 15 Engine 5 | . 13 14 11 11 11 11 7 9 9 6 . . . . . . . 2 . . . . . . . . . . . Core 2 | . . . . . . . 1 . . 2 9 9 11 13 13 11 10 3 2 . . . . . . . 1 . . Reactor 1 | . . . . . . . . . . . . . . . . . . 2 7 10 10 8 8 8 8 8 5 5 . Treads 25 | . 27 28 32 33 33 33 35 32 36 35 36 36 30 . . . . 12 15 15 15 3 . . . . . . . Hover 4 | . . . . . . . . . . . . . . 33 33 35 31 4 . . . 18 27 26 26 26 25 18 . Device 6 | . 11 13 4 . . . 6 1 . . . . 9 14 13 10 13 6 5 5 5 6 13 18 15 24 19 21 4 Storage 8 | . 14 14 11 11 11 11 9 9 9 9 9 10 6 6 6 5 5 8 5 5 5 4 4 4 4 4 4 2 . Processor 3 | . . . 6 11 11 11 9 9 . . . . . . . . . . . . . . . . . . 2 5 4 Hackware 11 | . . . . . . . 8 9 17 18 18 18 19 13 13 11 13 13 15 15 15 19 23 23 22 20 19 12 4 Protection 5 | . 2 . 10 11 11 11 2 7 8 8 8 7 2 4 6 9 7 5 10 9 10 5 4 4 2 . 2 . . Energy Cannon 4 | . 4 14 5 . . . 6 3 3 5 . 3 11 3 . . . . . 2 5 2 2 3 2 . 2 4 . Ballistic Gun 7 | . 17 13 10 22 22 22 6 10 12 5 9 5 . 2 6 6 5 5 . 2 5 3 . . . . . . . Impact Weapon 1 | . . . 2 . . . . . . 4 8 5 . . . . . . . . 5 4 4 4 4 4 1 . . Slashing Weapon 1 | . . . . . . . 4 3 2 1 . . . 1 6 3 5 . . . . . . . . . . . . Peak Build Rating 173 | 7 12 12 24 24 25 26 45 45 45 57 47 49 73 68 64 75 78 116 114 118 116 116 146 154 153 159 173 170 34 Average Rating 55 | 5 10 11 18 24 24 25 31 32 41 46 46 46 58 64 64 71 76 101 113 112 116 103 133 149 142 153 149 130 30 On Entrance 68 | . 7 11 11 24 24 25 26 34 29 45 47 47 47 73 64 64 73 78 112 114 116 116 104 142 146 142 156 158 34 Avg Prop Armor Cover (%) 8 | . . . . . . . . 3 . . . . . . . . . 17 . . . . . . . . 8 9 . Naked Turns . | . . . . . . . . . . . . . . . . . . . . . . . . . . . . . . Heaviest Build 217 | 13 54 32 62 61 61 61 74 74 68 76 62 71 77 49 41 53 49 216 215 217 216 216 87 86 88 86 109 90 1 Greatest Support 225 | 40 46 46 69 69 69 69 92 83 112 112 112 112 142 46 46 54 54 225 225 225 225 225 96 84 84 84 84 98 16 Greatest Overweight (x) 3 | 2 1 . . . . . . 1 . . . . 2 1 . . . 3 . . . 3 1 1 1 1 1 1 . Average Overweight (x) . | . . . . . . . . . . . . . . . . . . . . . . . . . . . . . . Largest Inventory Capacity 30 | 8 20 15 20 20 20 20 20 20 20 20 20 20 20 20 10 10 10 30 30 30 30 30 10 10 10 10 10 10 5 Average Capacity 18 | 7 16 15 19 20 20 20 20 20 20 20 20 20 20 10 10 10 10 27 30 30 30 22 10 10 10 10 10 8 5 Most Carried 30 | 5 20 15 20 20 20 20 20 20 20 20 20 20 20 14 10 10 10 30 30 30 27 30 10 10 10 10 10 10 5 Average Carried 18 | 3 14 14 17 20 19 20 19 19 19 19 20 19 19 9 10 9 10 25 29 28 27 15 9 9 9 9 9 7 5 Final Capacity 30 | 8 15 15 20 20 20 20 20 20 20 20 20 20 20 10 10 10 10 30 30 30 30 10 10 10 10 10 10 5 5 Final Carried 30 | 5 15 15 20 20 20 20 20 20 20 20 20 20 12 10 10 10 10 30 29 27 27 9 10 10 10 10 10 5 5 Class Distribution -------------------- 30% | Mutant 26% | Hacker-Mutant 17% | Scavenger-Mutant 8% | Bothacker-Mutant 5% | Bothacker-Tank Dominant Class ---------------- Mutant | -10/Materials Mutant | -10/Mines Mutant | -9/Materials Mutant | -9/Mines Mutant | -9/Exiles Mutant | -8/Mines Scavenger-Mutant | -8/Materials Scavenger-Mutant | -8/Garrison Hacker-Mutant | -8/Materials Hacker-Mutant | -8/Storage Hacker-Mutant | -8/Recycling Hacker-Mutant | -8/Scraptown Hacker-Mutant | -6/Factory Hacker-Mutant | -6/Lower Caves Hacker-Mutant | -6/Lower Caves Hacker-Scout | -5/Factory Hacker-Ninja | -4/Factory Scavenger-Tank | -4/Garrison Bothacker-Tank | -4/Factory Bothacker-Mutant | -4/Upper Caves Bothacker-Mutant | -4/Upper Caves Bothacker-Mutant | -3/Research Bothacker-Mutant | -3/DSF Bothacker-Mutant | -2/Research Bothacker-Mutant | -2/Garrison Bothacker-Mutant | -2/Research Bothacker-Mutant | -2/Garrison Bothacker-Skirmisher | -1/Access Mutant | -1/Garrison Resources | -11 -10 -10 -9 -9 -9 -8 -8 -8 -8 -8 -8 -8 -6 -6 -6 -5 -4 -4 -4 -4 -4 -3 -3 -2 -2 -2 -2 -1 -1 ----------- Run | Yrd Mat Min Mat Min Exi Min Mat Gar Mat Sto Rec Scr Fac Low Low Fac Fac Gar Fac Upp Upp Res DSF Res Gar Res Gar Acc Gar Matter Collected 11020 | 294 583 281 852 48 . 50 1025 979 682 625 100 182 154 225 . 126 83 1490 . 466 . . 400 224 415 104 1238 394 . Remotely . | . . . . . . . . . . . . . . . . . . . . . . . . . . . . . . Salvage Created 15104 | 72 677 164 1778 182 . 133 2086 1302 531 1335 192 . 849 129 . 147 164 1773 161 553 . . 422 342 686 215 885 326 . Parts 705 | 8 48 13 107 14 . 7 106 64 33 49 3 . 45 1 . 19 7 66 13 5 . . 6 9 13 4 49 16 . Haulers Intercepted 27 | . 2 . 6 . . . 6 . 6 6 . . 1 . . . . . . . . . . . . . . . . Recyclers Shooed 8 | . 2 . 3 . . . . . 1 1 . . 1 . . . . . . . . . . . . . . . . Parts Field Recycled . | . . . . . . . . . . . . . . . . . . . . . . . . . . . . . . Retrieved Matter . | . . . . . . . . . . . . . . . . . . . . . . . . . . . . . . Parts Self-Destructed 5 | . . . . . . . . . . . . . . 1 . . . . . 4 . . . . . . . . . Prevented . | . . . . . . . . . . . . . . . . . . . . . . . . . . . . . . Parts Restored 1 | . . . . . . . . . . . . . 1 . . . . . . . . . . . . . . . . Broken 1 | . . . . . . . . . . . . . 1 . . . . . . . . . . . . . . . . Kills | -11 -10 -10 -9 -9 -9 -8 -8 -8 -8 -8 -8 -8 -6 -6 -6 -5 -4 -4 -4 -4 -4 -3 -3 -2 -2 -2 -2 -1 -1 ------- Run | Yrd Mat Min Mat Min Exi Min Mat Gar Mat Sto Rec Scr Fac Low Low Fac Fac Gar Fac Upp Upp Res DSF Res Gar Res Gar Acc Gar Combat Hostiles Destroyed 225 | . 14 5 30 4 . 3 31 36 4 12 1 . 15 . . 5 . 21 4 5 . . 1 5 8 1 12 8 . Melee 9 | . . . . . . . 1 . . . . . 2 . . . . . . 3 . . . 1 1 . . 1 . Guns 88 | . 11 3 6 4 . 3 14 18 1 2 . . . . . 1 . 12 . . . . . . 4 1 7 1 . Cannons 80 | . 3 1 16 . . . 15 6 1 3 . . 8 . . . . 4 4 2 . . 1 3 2 . 5 6 . AOE 35 | . . 1 7 . . . 1 8 2 4 . . 5 . . 4 . 3 . . . . . . . . . . . Classes Destroyed 21 | 1 8 . 2 . . . 2 1 . 1 . . 3 . . . . . . 2 . . . . 1 . . . . Worker 30 | . 1 1 7 . . 1 3 . . 10 . . 3 . . 2 1 . 1 . . . . . . . . . . Builder 7 | . 1 . 1 . . . . . 2 . . . 1 . . 1 . . 1 . . . . . . . . . . Tunneler 9 | 4 . . 1 . . . . . . 1 . . 1 . . 1 . . . . . . . 1 . . . . . Hauler 27 | . 2 . 6 . . . 6 . 6 6 . . 1 . . . . . . . . . . . . . . . . Recycler 15 | . 2 . 3 . . 1 3 . 1 1 1 . 1 . . . 1 . . . . . . . . 1 . . . Minesweeper 1 | . . . . . . . . . . . . . . . . . . . . 1 . . . . . . . . . Mechanic 1 | . . . . . . . . . . 1 . . . . . . . . . . . . . . . . . . . Operator 11 | . 2 . 2 . . . 1 . 2 3 . . . . . . . . . . . . . . . 1 . . . Watcher 12 | . 1 . 3 . . . 3 . . 1 . . 1 . . 1 . . . . . . . . . 1 . 1 . Swarmer 57 | . 9 3 4 . . 3 3 11 2 . . . . . . 5 . 3 1 . . . 1 . 3 1 5 3 . Cutter 8 | . . . . . . . . . . . . . 4 . . . . . . . . . . . . . 4 . . Saboteur 2 | . . . . . . . . . . . . . . . . . . . . . . . . . 1 . . 1 . Grunt 85 | . 5 2 13 3 . . 18 18 . 8 . . . . . . . 11 1 3 . . . . 3 . . . . Brawler 7 | . . . 3 . . . 1 1 . 1 . . . . . . . . . . . . . . . . 1 . . Duelist 2 | . . . . . . . 1 . . . . . . . . . . . . 1 . . . . . . . . . Sentry 34 | . . . 10 1 . . 6 5 2 3 1 . 2 . . . . 3 . . . . . . . . . 1 . Specialist 2 | . . . . . . . . 1 . . . . 1 . . . . . . . . . . . . . . . . Hunter 10 | . . . . . . . 2 . . 1 . . 3 . . . . 1 . . . . . 2 . . 1 . . Programmer 18 | . . . . . . . . . . . . . 4 . . . . 3 2 1 . . . 3 1 . 1 3 . Heavy 1 | . . . . . . . . . . . . . 1 . . . . . . . . . . . . . . . . Samaritan 1 | . . . . . . . . . . . . . . . . . . . . 1 . . . . . . . . . Best Kill Streak 10 | 1 4 3 6 2 . 3 4 10 3 6 2 . 6 . . 6 2 5 2 3 . . 1 2 3 2 4 3 . Combat Bots Only 10 | . 3 3 4 2 . 3 3 10 2 4 1 . 4 . . 5 . 5 2 3 . . 1 2 3 1 4 3 . Max Kills in Single Turn 6 | 1 2 2 5 1 . 2 2 3 2 4 1 . 3 . . 6 1 2 1 1 . . 1 1 1 1 1 1 . Gunslinging 1 | . 1 . . . . 1 . 1 . . . . . . . . . . . . . . . . . . . . . Exploded 4 | . . 1 3 . . . 1 3 1 3 . . 2 . . 4 . 1 . . . . . . . . . . . Melee 1 | . . . . . . . 1 . . . . . 1 . . . . . . 1 . . . 1 1 . . 1 . Uniques/NPCs Destroyed . | . . . . . . . . . . . . . . . . . . . . . . . . . . . . . . Combat | -11 -10 -10 -9 -9 -9 -8 -8 -8 -8 -8 -8 -8 -6 -6 -6 -5 -4 -4 -4 -4 -4 -3 -3 -2 -2 -2 -2 -1 -1 -------- Run | Yrd Mat Min Mat Min Exi Min Mat Gar Mat Sto Rec Scr Fac Low Low Fac Fac Gar Fac Upp Upp Res DSF Res Gar Res Gar Acc Gar Hostile Shots Fired 1636 | . 56 24 97 12 . 8 169 122 8 53 7 . 155 . . 4 . 231 23 66 . . 1 91 51 3 106 332 17 Missed 573 | . 10 2 28 2 . 3 60 32 2 18 1 . 49 . . 2 . 74 11 26 . . . 53 13 1 26 153 7 Hits 1063 | . 46 22 69 10 . 5 109 90 6 35 6 . 106 . . 2 . 157 12 40 . . 1 38 38 2 80 179 10 Melee 48 | . . . 1 . . . 2 . . . . . 2 . . . . . . 6 . . . . . . 34 3 . Projectile 1015 | . 46 22 68 10 . 5 107 90 6 35 6 . 104 . . 2 . 157 12 34 . . 1 38 38 2 46 176 10 AOE 5 | . . . . . . . . . . . . . 4 . . . . . . . . . . . . . . 1 . Critical Strikes 67 | . . . 2 . . . 5 1 . 3 1 . 3 . . . . 11 2 4 . . . 1 2 . 19 13 . Actively Blocked 35 | . . . . . . . . . . . . . . . . . . . . . . . . 1 2 . 19 13 . Part Disruptions 7 | . . . . . . . . . . . . . 1 . . . . 1 . . . . . 1 1 . . 3 . Damage Taken 19833 | . 463 310 938 124 . 39 1646 1407 113 549 93 . 1747 . . 26 . 2607 230 893 . . 82 877 1099 45 2150 4068 327 Core 3158 | . 90 39 61 23 . . 151 106 34 16 . . 249 . . . . 135 16 42 . . . 76 33 24 436 1327 300 Absorbed by Shields 466 | . . . . . . . . . . . . . . . . . . 138 . . . . . . 34 . 266 . 28 Redirected to Shielding 44 | . . . . . . . . . . . . . . . . . . . . . . . . . 44 . . . . Ignored by Resistances 146 | . . . . . . . . . . . . . 90 . . . . . . . . . . . . . 56 . . Regen/Repaired (Parts) 1463 | . 158 . 320 . . . 189 . 20 323 . 395 . . . 58 . . . . . . . . . . . . . Core Remaining (%) 70 | 100 . 48 . . . 79 . . . . . 44 . . 70 100 . . . . 36 . 100 . . . 60 . . Volleys Fired 1017 | 10 59 15 104 8 . 6 114 95 28 43 1 . 37 6 . 5 . 135 21 24 . . 7 25 68 17 104 85 . Largest 3 | 2 2 2 2 2 . 2 2 2 2 2 1 . 2 1 . 2 . 3 1 2 . . 1 1 2 1 3 2 . Hottest 295 | 70 80 120 120 46 . 46 128 135 103 103 28 . 150 75 . 63 . 101 50 110 . . 81 120 214 94 295 146 . Shots Fired 1586 | 20 116 26 203 16 . 12 219 170 53 62 3 . 56 6 . 7 . 213 21 26 . . 7 25 80 18 129 98 . Gun 863 | 20 104 10 101 16 . 12 115 120 43 27 3 . . . . 7 . 175 . 5 . . . . 41 7 44 13 . Cannon 558 | . 9 14 95 . . . 103 48 7 22 . . 53 4 . . . 20 17 18 . . 2 14 13 . 44 75 . Launcher 39 | . 3 2 7 . . . 1 2 3 13 . . 2 2 . . . . . 3 . . . . . . . 1 . Special 126 | . . . . . . . . . . . . . 1 . . . . 18 4 . . . 5 11 26 11 41 9 . Kinetic 801 | 10 74 7 135 16 . 12 115 120 43 27 3 . . . . 7 . 160 17 19 . . . . . . 1 35 . Thermal 567 | 10 39 14 61 . . . 103 48 7 22 . . 45 3 . . . 35 . . . . . 2 54 7 69 48 . Explosive 28 | . 3 2 7 . . . 1 2 3 2 . . 2 2 . . . . . 3 . . . . . . . 1 . Electromagnetic 64 | . . 3 . . . . . . . 11 . . 8 1 . . . . . 4 . . 2 12 . . 18 5 . Robot Hit Streak 31 | 6 12 7 16 6 . 8 31 19 13 16 . . 9 . . 8 . 28 7 4 . . 5 4 28 3 15 20 . Robot Miss Streak 8 | 3 8 3 5 1 . 1 3 3 2 5 2 . 3 . . 1 . 4 1 4 . . 1 4 2 3 3 3 . Penetration Max 2 | . . . . . . . 1 1 1 1 . . . . . . . 2 . . . . . . . . . . . Secondary Targets 9 | . 1 . . . . 1 2 2 . . . . . . . . . 2 . . . . . . . . 1 . . Max Gunslinging Chain 1 | . 1 . . . . 1 1 1 . . . . . . . . . 1 . . . . . . . . 1 . . Capacitor 25 | . . . . . . . . . . . . . . . . . . . . . . . . . . . . 25 . Autonomous 26 | . . . . . . . . . . . . . . . . . . 26 . . . . . . . . . . . Shots Hit Robots 1144 | 12 53 16 138 13 . 9 184 133 35 56 5 . 41 7 . 7 2 154 13 18 . . 10 20 67 11 97 43 . Core Hits 502 | 4 29 8 67 8 . 6 76 54 18 34 1 . 27 2 . 10 2 73 5 11 . . 2 5 14 4 25 17 . Critical Kills 12 | . . . . . . . . 5 . . 1 . 2 . . . . 2 . . . . 1 . 1 . . . . Critical Parts Destroyed 20 | . . . 1 . . . 1 2 . 2 2 . 1 . . 1 . 6 . . . . 1 . 1 . 1 1 . Critical Strikes 45 | 2 2 . 3 . . . 4 7 . 2 3 . 3 . . 1 . 9 1 . . . 2 . 2 . 1 3 . Burn 4 | 2 2 . . . . . . . . . . . . . . . . . . . . . . . . . . . . Meltdown 5 | . . . . . . . . 4 . . . . . . . . . 1 . . . . . . . . . . . Destroy 13 | . . . . . . . 1 3 . . . . . . . 1 . 7 . . . . . . . . . 1 . Blast 6 | . . . 2 . . . . . . . . . . . . . . 1 1 . . . . . . . . 2 . Smash 14 | . . . 1 . . . . . . 2 3 . 3 . . . . . . . . . 2 . 2 . 1 . . Sever 3 | . . . . . . . 3 . . . . . . . . . . . . . . . . . . . . . . Melee Attacks 279 | . . . 17 . . . 52 28 9 29 13 . 14 8 . 21 10 6 . 6 . . 5 14 24 10 13 . . Thermal 3 | . . . . . . . . . . . . . . . . . . . . . . . . . . . 3 . . Impact 137 | . . . 17 . . . 7 . . 17 13 . 14 . . . . . . 6 . . 5 14 24 10 10 . . Slashing 121 | . . . . . . . 45 15 7 9 . . . 8 . 21 10 6 . . . . . . . . . . . Piercing . | . . . . . . . . . . . . . . . . . . . . . . . . . . . . . . Sneak Attacks 53 | . . . 6 . . . 6 12 2 14 2 . 1 . . 3 2 . . . . . . 1 1 1 2 . . Combat Hostiles 1 | . . . . . . . . . . . . . . . . . . . . . . . . . 1 . . . . Follow-up Attacks 2 | . . . . . . . . . . . . . . . . . . . . . . . . . . . 2 . . Damage Inflicted 36785 | 165 752 424 3142 188 . 147 4362 3537 926 2925 402 . 2938 358 . 1045 128 4742 667 1893 . . 514 1236 1725 217 2513 1839 . Guns 11444 | 165 641 93 892 188 . 130 1618 1546 517 348 . . . . . 49 . 2829 . 79 . . . . 819 121 1107 302 . Cannons 11595 | . 91 162 1305 . . . 1714 1322 158 499 . . 1684 . . . . 922 614 598 . . 50 346 152 . 661 1317 . Explosions 6874 | . 20 169 602 . . . 383 669 205 850 . . 910 . . 799 . 991 . 679 . . . 422 . . . 175 . Melee 6481 | . . . 336 . . . 647 . . 1228 402 . 298 358 . 197 128 . . 360 . . 464 468 754 96 745 . . Ramming 391 | . . . 7 . . 17 . . 46 . . . 46 . . . . . 53 177 . . . . . . . 45 . Kinetic 10888 | 64 353 77 1456 188 . 130 1618 1546 517 348 . . . . . 49 . 2287 614 573 . . . . . . . 1068 . Thermal 14677 | 101 379 265 741 . . . 2097 1966 158 531 . . 2292 . . . . 2455 . . . . . 532 971 121 1576 492 . Explosive 2920 | . 20 66 602 . . . . 25 205 234 . . 115 . . 799 . . . 679 . . . . . . . 175 . Electromagnetic 1428 | . . 16 . . . . . . . 584 . . 187 . . . . . . 104 . . 50 236 . . 192 59 . Impact 4968 | . . . 336 . . . . . . 1045 402 . 298 . . . . . . 360 . . 464 468 754 96 745 . . Slashing 1513 | . . . . . . . 647 . . 183 . . . 358 . 197 128 . . . . . . . . . . . . Piercing . | . . . . . . . . . . . . . . . . . . . . . . . . . . . . . . Highest Corruption 31 | . 4 4 . . . . 5 5 7 11 11 . 3 3 3 . . 1 2 3 3 . . 2 21 21 23 28 31 Average Corruption 6 | . 3 4 . . . . 2 5 6 9 11 . 1 3 3 . . 1 1 2 3 . . 1 10 21 21 15 28 Corruption Purged . | . . . . . . . . . . . . . . . . . . . . . . . . . . . . . . Corruption Blocked . | . . . . . . . . . . . . . . . . . . . . . . . . . . . . . . Effects 540 | . 38 12 . . . . 46 81 70 90 26 . 5 4 . . . 9 10 11 . . . . 22 13 86 13 4 Message Errors 131 | . 7 3 . . . . 12 14 16 20 5 . 2 1 . . . 3 1 2 . . . . 8 5 28 3 1 Matter Fused 133 | . 8 3 . . . . 11 26 15 29 7 . 2 2 . . . 2 4 2 . . . . 1 3 14 2 2 Heat Flow Errors 69 | . 7 3 . . . . 5 7 12 11 3 . . 1 . . . 2 1 2 . . . . 5 2 6 2 . Energy Discharges 62 | . 6 . . . . . 4 10 14 6 5 . 1 . . . . 1 2 1 . . . . 2 . 10 . . Parts Rejected 5 | . . . . . . . . 1 . 1 . . . . . . . . . . . . . . . . 1 2 . Parts Fused 4 | . . . . . . . . 3 . . . . . . . . . . . . . . . . . . . 1 . Data Loss (minor) 56 | . 4 . . . . . 5 8 7 13 1 . . . . . . 1 2 . . . . . 1 2 9 2 1 Data Loss (major) 24 | . 1 1 . . . . 3 5 3 1 3 . . . . . . . . 3 . . . . 1 . 3 . . Misfires 25 | . 2 2 . . . . 2 5 2 4 2 . . . . . . . . . . . . . 3 1 2 . . Alerts 12 | . 3 . . . . . 2 2 1 1 . . . . . . . . . 1 . . . . . . 2 . . Misdirections 8 | . . . . . . . . . . 2 . . . . . . . . . . . . . . 1 . 4 1 . Weapon Failures 11 | . . . . . . . 2 . . 2 . . . . . . . . . . . . . . . . 7 . . Overload Shots . | . . . . . . . . . . . . . . . . . . . . . . . . . . . . . . Overflow Damage 3134 | . . 8 69 . . . 237 178 12 709 131 . 324 101 . 108 . 15 34 403 . . 226 193 51 66 198 71 . Projectiles 732 | . . . 2 . . . 144 178 5 . . . 243 . . . . 11 30 33 . . . . . . 15 71 . Explosions 282 | . . 8 . . . . 37 . . 9 . . 28 . . 108 . 4 . 88 . . . . . . . . . Melee 2120 | . . . 67 . . . 56 . 7 700 131 . 53 101 . . . . 4 282 . . 226 193 51 66 183 . . Knockbacks 21 | . . . 5 . . . . . 1 1 . . 1 . . . . 2 3 2 . . . 3 . 1 . 2 . Impact 8 | . . . 2 . . . . . 1 1 . . . . . . . . . . . . . 3 . 1 . . . Kinetic 12 | . . . 3 . . . . . . . . . . . . . . 2 3 2 . . . . . . . 2 . Secondary 1 | . . . . . . . . . . . . . 1 . . . . . . . . . . . . . . . . Self-Inflicted Damage 315 | . . . . . . . . 66 . 61 . . 95 . . . . 75 . . . . . . . . . 18 . Shots 9 | . . . . . . . . 2 . 4 . . 2 . . . . 1 . . . . . . . . . . . Rammed 35 | . . . 1 . . . . . 5 . . . 4 . . . . . 1 4 . . . . . . . 20 . Targets Rammed 41 | . . . 1 . . 1 . . 5 . . . 6 . . . . . 2 6 . . . . . . . 20 . Kicked . | . . . . . . . . . . . . . . . . . . . . . . . . . . . . . . Crushed 6 | . . . . . . 1 . . . . . . 2 . . . . . 1 2 . . . . . . . . . Highest Temperature 379 | 36 207 296 180 20 . . 255 273 235 274 188 . 90 204 . . . 379 77 220 . . 1 92 170 198 324 254 . Average Temperature 61 | 14 50 127 50 9 . . 32 59 78 78 82 . 32 83 . . . 89 60 85 . . 1 16 55 66 73 94 . Received Heat Transfer 3389 | . 36 171 336 72 . . 738 414 18 288 45 . 186 . . . . 532 64 184 . . . . 108 . 80 117 . Effects 3 | . . . . . . . . . . 1 . . . . . . . 1 . . . . . . . . 1 . . Energy Bleed 2 | . . . . . . . . . . 1 . . . . . . . . . . . . . . . . 1 . . Matter Decay 1 | . . . . . . . . . . . . . . . . . . 1 . . . . . . . . . . . Siege Activations . | . . . . . . . . . . . . . . . . . . . . . . . . . . . . . . Martial Activations . | . . . . . . . . . . . . . . . . . . . . . . . . . . . . . . Shielding Activations . | . . . . . . . . . . . . . . . . . . . . . . . . . . . . . . Robots Disrupted . | . . . . . . . . . . . . . . . . . . . . . . . . . . . . . . Combat Hostiles . | . . . . . . . . . . . . . . . . . . . . . . . . . . . . . . Robots Corrupted 20 | . . . 3 . . . . . 1 5 1 . . . . . . . . 1 . . 3 2 2 1 1 . . Combat Hostiles 8 | . . . 1 . . . . . . 3 1 . . . . . . . . . . . . 1 1 . 1 . . Parts Fried 36 | . . . 8 . . . . . . 7 2 . 3 . . . . . 2 2 . . . 2 7 2 1 . . Impact Corruptions 64 | . . . 5 . . . . . 1 18 5 . 1 . . . . . 1 8 . . 6 9 3 3 4 . . Robots Melted 6 | . . . . . . . . 4 . . . . . . . . . 2 . . . . . . . . . . . Combat Hostiles 6 | . . . . . . . . 4 . . . . . . . . . 2 . . . . . . . . . . . Parts Melted 32 | 1 2 2 1 . . . 4 5 2 2 . . 4 . . . . 6 . . . . . . 1 2 . . . Heat Transferred 17974 | 444 1184 483 1517 . . . 3279 2045 222 648 . . 2125 . . . . 2207 . . . . . 324 1147 148 1757 444 . Parts Sabotaged 2 | . . . . . . . . . . . . . . . . . . . . . . . . . . . . 2 . Parts Stolen . | . . . . . . . . . . . . . . . . . . . . . . . . . . . . . . Parts Stripped . | . . . . . . . . . . . . . . . . . . . . . . . . . . . . . . Power Chain Reactions 4 | . . 1 . . . . . . . 2 . . . . . . . . . . . . . 1 . . . . . Alert | -11 -10 -10 -9 -9 -9 -8 -8 -8 -8 -8 -8 -8 -6 -6 -6 -5 -4 -4 -4 -4 -4 -3 -3 -2 -2 -2 -2 -1 -1 ------- Run | Yrd Mat Min Mat Min Exi Min Mat Gar Mat Sto Rec Scr Fac Low Low Fac Fac Gar Fac Upp Upp Res DSF Res Gar Res Gar Acc Gar Maximum Alert Level 5 | . . . 2 1 . . 2 5 4 1 . . 1 . . . . 5 4 . . 1 1 . 2 1 3 2 1 Low Security (%) 48 | 100 100 100 29 84 . 100 58 . 5 90 100 . 97 . . 100 100 4 . . . 60 89 100 16 59 26 . . Level 1 19 | . . . 55 15 . . 27 4 37 9 . . 2 . . . . 1 . . . 40 10 . 42 40 50 36 100 Level 2 14 | . . . 14 . . . 13 4 48 . . . . . . . . 39 . . . . . . 41 . 9 63 . Level 3 8 | . . . . . . . . 33 6 . . . . . . . . 23 83 . . . . . . . 13 . . Level 4 4 | . . . . . . . . 22 2 . . . . . . . . 17 16 . . . . . . . . . . Level 5 4 | . . . . . . . . 34 . . . . . . . . . 13 . . . . . . . . . . . High Security . | . . . . . . . . . . . . . . . . . . . . . . . . . . . . . . Max Security . | . . . . . . . . . . . . . . . . . . . . . . . . . . . . . . Peak Influence 2732 | 5 115 96 480 231 . 74 503 2732 1331 354 86 . 246 . . 190 58 1877 1298 . . 219 259 158 553 320 728 531 213 Initial 1331 | . . 26 . 181 . . . 326 1331 80 56 . . . . 33 49 33 984 . . 219 126 145 82 310 78 436 213 Average 387 | . 31 14 252 154 . 20 182 1388 463 96 15 . 29 . . 82 45 909 1042 . . 198 156 125 369 192 327 405 210 Influence Increases 13719 | 20 516 132 1067 131 . 84 1171 2536 389 1083 188 . 585 5 . 297 39 1964 543 145 . . 143 231 741 174 970 565 . Destroy 0b10 Robot/C 5740 | . 280 100 600 100 . 60 620 920 180 420 20 . 300 . . 100 . 540 180 100 . . 80 120 340 60 360 260 . Destroy 0b10 Robot/NC 675 | 20 45 5 115 . . 10 80 . 60 130 10 . 40 5 . 25 10 30 10 10 . . 20 5 10 15 15 5 . Destroy Leader 1100 | . 76 20 188 20 . 10 168 20 82 116 . . 104 . . 12 . 10 50 20 . . 10 30 30 22 60 52 . Allied During Kill 640 | . . . . 11 . 4 . 21 29 193 . . . . . . . 56 79 . . . 25 10 142 5 33 32 . Successful Hack 305 | . 19 . 40 . . . 48 . 12 65 31 . 13 . . 25 . 10 . . . . . . 16 . 14 12 . Select Force Hacks 150 | . 30 . . . . . . . . . 120 . . . . . . . . . . . . . . . . . . Disable Machine 525 | . . . 60 . . . 75 60 . 120 . . 45 . . 60 15 30 15 . . . . . . 30 15 . . Anti-Garrison Action 2700 | . . . . . . . . 1250 . . . . . . . . . 850 150 . . . . . 100 . 350 . . Destroy Structure 1119 | . 21 7 49 . . . 90 205 26 39 7 . 68 . . 60 14 228 14 . . . 8 51 43 27 78 84 . Partial Spotted 45 | . . . . . . . . . . . . . 15 . . . . . . . . . . . . 15 . 15 . Lose Combat Pursuer 720 | . 45 . 15 . . . 90 60 . . . . . . . 15 . 210 45 15 . . . 15 60 . 45 105 . Influence Decreases 13516 | 20 448 200 600 556 42 84 668 307 2929 1129 329 5 342 180 14 249 93 135 1461 676 102 157 53 380 298 623 346 1026 64 Entered New Map 4586 | . . 42 . 286 42 . . 177 1401 112 90 5 . 90 14 21 53 15 893 356 82 107 43 114 28 243 26 292 54 Time Decay 5547 | 20 441 148 570 230 . 84 618 . 658 537 193 . 252 90 . 228 40 . 278 310 20 50 . 206 . 170 . 404 . Lost Part 830 | . . 10 20 . . . 40 50 . . . . 80 . . . . 80 . 10 . . 10 20 90 . 120 290 10 Lost Ally 1150 | . . . 10 40 . . 10 80 120 180 . . 10 . . . . 40 140 . . . . 40 180 60 200 40 . Purge Threat 1403 | . 7 . . . . . . . 750 300 46 . . . . . . . 150 . . . . . . 150 . . . Squads Dispatched 51 | . 4 . 3 . . . 5 . 4 6 . . 11 . . 1 . . 8 . . . . 2 . 1 . 6 . Investigation 10 | . 2 . 1 . . . 2 . 1 2 . . 1 . . . . . . . . . . . . . . 1 . Extermination 13 | . . . . . . . . . . . . . 4 . . 1 . . 1 . . . . 2 . 1 . 4 . Reinforcement 20 | . 2 . 1 . . . 3 . 3 4 . . 6 . . . . . 1 . . . . . . . . . . Assault 7 | . . . 1 . . . . . . . . . . . . . . . 5 . . . . . . . . 1 . Garrison 1 | . . . . . . . . . . . . . . . . . . . 1 . . . . . . . . . . Intercept . | . . . . . . . . . . . . . . . . . . . . . . . . . . . . . . Searches Triggered . | . . . . . . . . . . . . . . . . . . . . . . . . . . . . . . Construction Impeded 2 | . . . . . . . . . . 1 . . 1 . . . . . . . . . . . . . . . . Haulers Reinforced . | . . . . . . . . . . . . . . . . . . . . . . . . . . . . . . Active Scanning Responses . | . . . . . . . . . . . . . . . . . . . . . . . . . . . . . . Cargo Convoy Interrupts 1 | . . . . . . . . . . . . . 1 . . . . . . . . . . . . . . . . Stealth | -11 -10 -10 -9 -9 -9 -8 -8 -8 -8 -8 -8 -8 -6 -6 -6 -5 -4 -4 -4 -4 -4 -3 -3 -2 -2 -2 -2 -1 -1 --------- Run | Yrd Mat Min Mat Min Exi Min Mat Gar Mat Sto Rec Scr Fac Low Low Fac Fac Gar Fac Upp Upp Res DSF Res Gar Res Gar Acc Gar Distress Signals 26 | . 3 1 1 . . . 7 . 3 3 . . 1 . . 2 . . 1 . . . . 3 . 1 . . . Communications Jammed 16 | . . . . . . . . . . . . . . . . . . . . . . . . . . . . 16 . Distress Signals 16 | . . . . . . . . . . . . . . . . . . . . . . . . . . . . 16 . Times Spotted 465 | . 38 3 48 5 . 4 49 43 16 30 1 . 24 . . 11 . 45 8 6 . . 7 21 21 6 38 40 1 Peak Tracking Total 9 | . 6 2 5 2 . 2 6 5 3 5 1 . 5 . . 7 . 8 6 3 . . 3 9 6 4 7 9 1 Tactical Retreats 38 | . 1 . 1 . . . 5 3 . . . . . . . 1 . 11 2 1 . . . 1 4 . 3 5 . Traps | -11 -10 -10 -9 -9 -9 -8 -8 -8 -8 -8 -8 -8 -6 -6 -6 -5 -4 -4 -4 -4 -4 -3 -3 -2 -2 -2 -2 -1 -1 ------- Run | Yrd Mat Min Mat Min Exi Min Mat Gar Mat Sto Rec Scr Fac Low Low Fac Fac Gar Fac Upp Upp Res DSF Res Gar Res Gar Acc Gar Traps Triggered 26 | . 3 . . . . . 2 1 1 1 . . 4 . . . . 3 . . . . 1 . 1 . 5 3 1 Indirectly 4 | . . . . . . . . . . 1 . . 3 . . . . . . . . . . . . . . . . Trap Hack Attempts . | . . . . . . . . . . . . . . . . . . . . . . . . . . . . . . Triggered . | . . . . . . . . . . . . . . . . . . . . . . . . . . . . . . Disarmed . | . . . . . . . . . . . . . . . . . . . . . . . . . . . . . . Reprogrammed . | . . . . . . . . . . . . . . . . . . . . . . . . . . . . . . Reused . | . . . . . . . . . . . . . . . . . . . . . . . . . . . . . . Traps Extracted . | . . . . . . . . . . . . . . . . . . . . . . . . . . . . . . Installed . | . . . . . . . . . . . . . . . . . . . . . . . . . . . . . . Triggered . | . . . . . . . . . . . . . . . . . . . . . . . . . . . . . . Machines | -11 -10 -10 -9 -9 -9 -8 -8 -8 -8 -8 -8 -8 -6 -6 -6 -5 -4 -4 -4 -4 -4 -3 -3 -2 -2 -2 -2 -1 -1 ---------- Run | Yrd Mat Min Mat Min Exi Min Mat Gar Mat Sto Rec Scr Fac Low Low Fac Fac Gar Fac Upp Upp Res DSF Res Gar Res Gar Acc Gar Machines Disabled 53 | . . . 4 . . . 5 8 . 8 . . 3 . . 4 1 9 2 . . . . . 2 2 5 . . Max in Single Turn 3 | . . . 1 . . . 1 2 . 1 . . 2 . . 3 1 1 1 . . . . . 1 1 1 . . Garrison Access 1 | . . . . . . . . . . . . . . . . . . . 1 . . . . . . . . . . Garrison Relay 13 | . . . . . . . . 2 . . . . . . . . . 5 . . . . . . 2 . 4 . . Phase Generator 1 | . . . . . . . . 1 . . . . . . . . . . . . . . . . . . . . . Machines Repaired . | . . . . . . . . . . . . . . . . . . . . . . . . . . . . . . Machines Dismantled . | . . . . . . . . . . . . . . . . . . . . . . . . . . . . . . Machines Sabotaged . | . . . . . . . . . . . . . . . . . . . . . . . . . . . . . . Overloaded Fab Kills . | . . . . . . . . . . . . . . . . . . . . . . . . . . . . . . Hacking | -11 -10 -10 -9 -9 -9 -8 -8 -8 -8 -8 -8 -8 -6 -6 -6 -5 -4 -4 -4 -4 -4 -3 -3 -2 -2 -2 -2 -1 -1 --------- Run | Yrd Mat Min Mat Min Exi Min Mat Gar Mat Sto Rec Scr Fac Low Low Fac Fac Gar Fac Upp Upp Res DSF Res Gar Res Gar Acc Gar Machines Accessed 113 | . 9 . 13 . 2 . 13 3 11 15 8 1 7 1 . 7 4 2 2 1 . 2 . 2 1 2 3 4 . Terminals 74 | . 6 . 9 . . . 6 3 9 12 4 . 4 . . 5 2 2 2 . . 1 . 1 1 1 3 3 . Fabricators 2 | . . . . . . . . . . . . . 2 . . . . . . . . . . . . . . . . Repair Stations 9 | . 1 . 2 . . . 2 . 1 2 . . . . . 1 . . . . . . . . . . . . . Recycling Units 13 | . 2 . . . . . 2 . . 1 4 . 1 . . 1 1 . . . . 1 . . . . . . . Scanalyzers 4 | . . . 2 . . . 2 . . . . . . . . . . . . . . . . . . . . . . Garrison Access 6 | . . . . . . . 1 . 1 . . . . . . . 1 . . . . . . 1 . 1 . 1 . Total Hacks 303 | . 27 . 46 . 4 . 39 7 31 42 17 9 31 1 . 14 6 4 6 1 . 3 . 3 1 3 4 4 . Successful 183 | . 16 . 27 . 4 . 26 1 15 30 14 9 17 1 . 9 2 2 1 1 . 1 . 1 1 2 1 2 . Failed 117 | . 10 . 18 . . . 12 6 16 12 3 . 14 . . 5 4 2 5 . . 2 . 2 . 1 3 2 . Catastrophic 26 | . . . 3 . . . 2 3 6 . 2 . 3 . . 2 . . 2 . . . . . . 1 1 1 . Database Lockouts 3 | . 1 . 1 . . . 1 . . . . . . . . . . . . . . . . . . . . . . Manual 130 | . 17 . 18 . 1 . 12 . 22 15 14 . 18 . . 6 3 . 2 . . . . . . 1 . 1 . Terminals 199 | . 15 . 30 . . . 20 7 27 33 13 . 19 . . 9 4 4 6 . . 1 . 2 1 1 4 3 . Fabricators 8 | . . . . . . . . . . . . . 8 . . . . . . . . . . . . . . . . Repair Stations 36 | . 9 . 9 . . . 6 . 2 6 . . . . . 4 . . . . . . . . . . . . . Recycling Units 21 | . 3 . . . . . 3 . . 3 4 . 4 . . 1 1 . . . . 2 . . . . . . . Scanalyzers 16 | . . . 7 . . . 9 . . . . . . . . . . . . . . . . . . . . . . Garrison Access 8 | . . . . . . . 1 . 2 . . . . . . . 1 . . . . . . 1 . 2 . 1 . Terminal Hacks 88 | . 4 . 7 . 4 . 6 1 10 20 10 9 6 1 . 2 . 2 1 1 . 1 . . 1 . 1 1 . Record 14 | . . . . . 3 . . . . . 1 9 . . . . . . . . . . . . . . . 1 . Part Schematic 3 | . . . . . . . . . . . 2 . 1 . . . . . . . . . . . . . . . . Robot Analysis 5 | . 2 . 2 . . . . . . 1 . . . . . . . . . . . . . . . . . . . Prototype ID Bank 5 | . . . . . . . . . 2 1 1 . . . . 1 . . . . . . . . . . . . . Open Door 9 | . . . . . . . . . . 7 . . . 1 . . . . . 1 . . . . . . . . . Open DSF 2 | . . . . . . . . . . . . . . . . 1 . . . . . 1 . . . . . . . Level Access Points 2 | . . . . . . . . . . . 1 . 1 . . . . . . . . . . . . . . . . Branch Access Points 4 | . . . . . . . . . 1 1 1 . 1 . . . . . . . . . . . . . . . . Emergency Access Points 2 | . . . . . . . . 1 . . . . . . . . . 1 . . . . . . . . . . . Machine Index 1 | . . . . . . . . . 1 . . . . . . . . . . . . . . . . . . . . Fabricator Index 1 | . . . . . . . . . . . . . 1 . . . . . . . . . . . . . . . . Recycling Unit Index 1 | . . . . . . . . . . . 1 . . . . . . . . . . . . . . . . . . Garrison Index 1 | . . . . . . . . . . . . . 1 . . . . . . . . . . . . . . . . Unreport Threat 10 | . 1 . . . . . . . 5 2 1 . . . . . . . 1 . . . . . . . . . . Locate Traps 7 | . . . 4 . . . 1 . . 2 . . . . . . . . . . . . . . . . . . . Recall Investigation 1 | . . . . . . . 1 . . . . . . . . . . . . . . . . . . . . . . Recall Reinforcements 2 | . . . . . . . . . . 2 . . . . . . . . . . . . . . . . . . . Hauler Manifests 9 | . 1 . 1 . . . 3 . 1 1 1 . 1 . . . . . . . . . . . . . . . . Registered Prototypes 1 | . . . . . . . . . . 1 . . . . . . . . . . . . . . . . . . . Zone Layout 4 | . . . . . . . 1 . . 2 1 . . . . . . . . . . . . . . . . . . Garrison Registry 1 | . . . . . . . . . . . . . . . . . . . . . . . . . . . 1 . . Security Stations 2 | . . . . . . . . . . . . . . . . . . 1 . . . . . . 1 . . . . Proto ID Catalog 1 | . . . . . 1 . . . . . . . . . . . . . . . . . . . . . . . . Fabricator Hacks 4 | . . . . . . . . . . . . . 4 . . . . . . . . . . . . . . . . Load Schematic 3 | . . . . . . . . . . . . . 3 . . . . . . . . . . . . . . . . Build 1 | . . . . . . . . . . . . . 1 . . . . . . . . . . . . . . . . Repair Station Hacks 32 | . 8 . 8 . . . 4 . 2 6 . . . . . 4 . . . . . . . . . . . . . Scan Component 16 | . 4 . 4 . . . 2 . 1 3 . . . . . 2 . . . . . . . . . . . . . Repair 16 | . 4 . 4 . . . 2 . 1 3 . . . . . 2 . . . . . . . . . . . . . Recycling Unit Hacks 12 | . . . . . . . 3 . . 3 . . 4 . . 1 1 . . . . . . . . . . . . Process 2 | . . . . . . . . . . 1 . . 1 . . . . . . . . . . . . . . . . Report Inventory 7 | . . . . . . . 2 . . 1 . . 2 . . 1 1 . . . . . . . . . . . . Retrieve Matter 2 | . . . . . . . . . . 1 . . 1 . . . . . . . . . . . . . . . . Retrieve Components 1 | . . . . . . . 1 . . . . . . . . . . . . . . . . . . . . . . Scanalyzer 11 | . . . 4 . . . 7 . . . . . . . . . . . . . . . . . . . . . . Insert Component 5 | . . . 1 . . . 4 . . . . . . . . . . . . . . . . . . . . . . Analyze 2 | . . . . . . . 2 . . . . . . . . . . . . . . . . . . . . . . Retrieve Study 4 | . . . 3 . . . 1 . . . . . . . . . . . . . . . . . . . . . . Garrison Access Hacks 7 | . . . . . . . 1 . 1 . . . . . . . 1 . . . . . . 1 . 2 . 1 . Unlock Access 6 | . . . . . . . 1 . 1 . . . . . . . 1 . . . . . . 1 . 1 . 1 . Coupler Status 1 | . . . . . . . . . . . . . . . . . . . . . . . . . . 1 . . . Unauthorized Hacks 29 | . 4 . 8 . . . 5 . 2 1 4 . 3 . . 2 . . . . . . . . . . . . . Terminals 24 | . 3 . 8 . . . 5 . 2 1 . . 3 . . 2 . . . . . . . . . . . . . Assimilate 4 | . . . 2 . . . 1 . . 1 . . . . . . . . . . . . . . . . . . . Botnet 17 | . 3 . 4 . . . 3 . 2 . . . 3 . . 2 . . . . . . . . . . . . . Operators 3 | . . . 2 . . . 1 . . . . . . . . . . . . . . . . . . . . . . Fabricators . | . . . . . . . . . . . . . . . . . . . . . . . . . . . . . . Repair Stations . | . . . . . . . . . . . . . . . . . . . . . . . . . . . . . . Recycling Units 5 | . 1 . . . . . . . . . 4 . . . . . . . . . . . . . . . . . . Tunnel 5 | . 1 . . . . . . . . . 4 . . . . . . . . . . . . . . . . . . Scanalyzers . | . . . . . . . . . . . . . . . . . . . . . . . . . . . . . . Garrison Access . | . . . . . . . . . . . . . . . . . . . . . . . . . . . . . . Data Cores Recovered 2 | . . . . . . . . . 1 . . . . . . . . . . . . . . . . 1 . . . Used 1 | . . . . . . . . . . . . . . . . . . . . . . . . . . 1 . . . Hacking Detections 86 | . 7 . 13 . . . 9 3 10 14 3 . 5 . . 5 3 1 2 . . 2 . 1 1 1 3 3 . Full Trace Events 12 | . 1 . 1 . . . 2 2 1 1 2 . 1 . . . . . . . . . . . . . 1 . . Feedback Events 3 | . 1 . . . . . 1 . . . . . . . . . . . . . . . . . . . 1 . . Corruption 3 | . 1 . . . . . 1 . . . . . . . . . . . . . . . . . . . 1 . . Feedback Blocked . | . . . . . . . . . . . . . . . . . . . . . . . . . . . . . . Robot Schematics Acquired . | . . . . . . . . . . . . . . . . . . . . . . . . . . . . . . Robots Built . | . . . . . . . . . . . . . . . . . . . . . . . . . . . . . . Authchips . | . . . . . . . . . . . . . . . . . . . . . . . . . . . . . . Time . | . . . . . . . . . . . . . . . . . . . . . . . . . . . . . . Total Robot Build Rating . | . . . . . . . . . . . . . . . . . . . . . . . . . . . . . . Part Schematics Acquired 5 | . . . . . . . 2 . . . 2 . 1 . . . . . . . . . . . . . . . . Parts Built 1 | . . . . . . . . . . . . . 1 . . . . . . . . . . . . . . . . Authchips . | . . . . . . . . . . . . . . . . . . . . . . . . . . . . . . Time 134 | . . . . . . . . . . . . . 134 . . . . . . . . . . . . . . . . Total Part Build Rating 4 | . . . . . . . . . . . . . 4 . . . . . . . . . . . . . . . . Part Studies Acquired 4 | . . . 3 . . . 1 . . . . . . . . . . . . . . . . . . . . . . Parts Repaired 16 | . 4 . 4 . . . 2 . 1 3 . . . . . 2 . . . . . . . . . . . . . Time 513 | . 116 . 128 . . . 67 . 32 88 . . . . . 82 . . . . . . . . . . . . . Parts Recycled . | . . . . . . . . . . . . . . . . . . . . . . . . . . . . . . Recycled Matter 582 | . . . . . . . . . . 441 . . 141 . . . . . . . . . . . . . . . . Retrieved Matter 819 | . . . . . . . . . . 628 . . 191 . . . . . . . . . . . . . . . . Retrieved Components 5 | . . . . . . . 5 . . . . . . . . . . . . . . . . . . . . . . Parts Scanalyzed 3 | . . . . . . . 3 . . . . . . . . . . . . . . . . . . . . . . Part Schematics Acquired 2 | . . . . . . . 2 . . . . . . . . . . . . . . . . . . . . . . Parts Damaged . | . . . . . . . . . . . . . . . . . . . . . . . . . . . . . . Bothacking | -11 -10 -10 -9 -9 -9 -8 -8 -8 -8 -8 -8 -8 -6 -6 -6 -5 -4 -4 -4 -4 -4 -3 -3 -2 -2 -2 -2 -1 -1 ------------ Run | Yrd Mat Min Mat Min Exi Min Mat Gar Mat Sto Rec Scr Fac Low Low Fac Fac Gar Fac Upp Upp Res DSF Res Gar Res Gar Acc Gar Used RIF Installer 3 | . . . . . . . . 1 . . . . . . . . . 1 . . . . . . . . 1 . . Watcher Feeds 1 | . . . . . . . . . . . . . . . . . . . . . . . . . . . 1 . . Structural Interface 1 | . . . . . . . . . . . . . . . . . . 1 . . . . . . . . . . . Robots Hacked 51 | . . . . . . . . . 2 2 . . 1 . . . . 5 2 . . . 4 4 7 6 14 4 . Non-combat 13 | . . . . . . . . . 2 2 . . 1 . . . . 1 1 . . . 1 2 . 3 . . . Combat 38 | . . . . . . . . . . . . . . . . . . 4 1 . . . 3 2 7 3 14 4 . Robot Hacks Applied 60 | . . . . . . . . . 2 2 . . 1 . . . . 8 2 . . . 4 4 8 7 18 4 . parse_system 4 | . . . . . . . . . . . . . . . . . . 2 1 . . . . . . . 1 . . no_distress 3 | . . . . . . . . . 1 1 . . 1 . . . . . . . . . . . . . . . . map_walls 1 | . . . . . . . . . . . . . . . . . . . . . . . . 1 . . . . . map_earth 1 | . . . . . . . . . . . . . . . . . . . . . . . . . . 1 . . . drop_inventory 3 | . . . . . . . . . . . . . . . . . . . . . . . 1 1 . 1 . . . find_recycling 1 | . . . . . . . . . . 1 . . . . . . . . . . . . . . . . . . . release_backups 1 | . . . . . . . . . . . . . . . . . . 1 . . . . . . . . . . . deconstruct_bot 2 | . . . . . . . . . . . . . . . . . . 2 . . . . . . . . . . . check_alert 1 | . . . . . . . . . 1 . . . . . . . . . . . . . . . . . . . . purge_threat 1 | . . . . . . . . . . . . . . . . . . . . . . . . . . 1 . . . block_reporting 1 | . . . . . . . . . . . . . . . . . . . . . . . . . . 1 . . . link_complan 1 | . . . . . . . . . . . . . . . . . . . . . . . . . . 1 . . . amplify_resonance 11 | . . . . . . . . . . . . . . . . . . 1 . . . . . 2 2 1 4 1 . overwrite_iff 12 | . . . . . . . . . . . . . . . . . . . . . . . . . 4 . 7 1 . streamctrl_high 2 | . . . . . . . . . . . . . . . . . . . . . . . . . . . 1 1 . formatsys_high 15 | . . . . . . . . . . . . . . . . . . 2 1 . . . 3 . 2 1 5 1 . Relay Couplers Released 56 | . . . . . . . . 9 . . . . . . . . . 21 2 . . . . . 8 . 16 . . Machine Destruction 56 | . . . . . . . . 9 . . . . . . . . . 21 2 . . . . . 8 . 16 . . Attached 26 | . . . . . . . . . . . . . . . . . . 3 1 . . 2 1 1 5 . 13 . . Fabnet Peak Effective % . | . . . . . . . . . . . . . . . . . . . . . . . . . . . . . . Robots Rewired 26 | . . . . . . . . 11 . . . . . . . . . 5 . . . . . . 8 . 2 . . Allies Hacked 3 | . . . . . . . . . . . . . . . . . . . 1 . . . . . 1 . 1 . . Hacks Repelled . | . . . . . . . . . . . . . . . . . . . . . . . . . . . . . . Allies | -11 -10 -10 -9 -9 -9 -8 -8 -8 -8 -8 -8 -8 -6 -6 -6 -5 -4 -4 -4 -4 -4 -3 -3 -2 -2 -2 -2 -1 -1 -------- Run | Yrd Mat Min Mat Min Exi Min Mat Gar Mat Sto Rec Scr Fac Low Low Fac Fac Gar Fac Upp Upp Res DSF Res Gar Res Gar Acc Gar Total Allies 72 | . . . 1 3 . . 1 11 . 10 . . . . . . . 9 1 . . . 3 . 14 1 15 3 . Largest Group 10 | . . . 1 3 1 1 1 6 6 10 . . . . . . . 7 7 . . . 3 3 8 2 5 2 . Highest-Rated Group 458 | . . . 10 40 16 16 16 63 30 173 . . . . . . . 417 417 . . . 254 254 458 122 372 168 . Highest-Rated Ally 142 | . . . 10 16 16 16 16 24 5 29 . . . . . . . 95 95 . . . 142 142 64 64 119 104 . Total Orders . | . . . . . . . . . . . . . . . . . . . . . . . . . . . . . . Ally Attacks 444 | . . . . 5 . 3 2 46 98 86 . . . . . . . 21 38 . . . 14 10 51 15 46 9 . Total Damage 10168 | . . . . 50 . 30 15 1035 491 869 . . . . . . . 902 1289 . . . 510 302 1925 524 1925 301 . Kills 68 | . . . . 1 . . . 11 6 12 . . . . . . . 6 5 . . . 3 2 9 2 6 5 . Allies Corrupted 7 | . . . . . . . . . . . . . . . . . . . 1 . . . . . 5 . . 1 . Allies Melted 1 | . . . . . . . . . . . . . . . . . . . . . . . . . . . 1 . . Intel | -11 -10 -10 -9 -9 -9 -8 -8 -8 -8 -8 -8 -8 -6 -6 -6 -5 -4 -4 -4 -4 -4 -3 -3 -2 -2 -2 -2 -1 -1 ------- Run | Yrd Mat Min Mat Min Exi Min Mat Gar Mat Sto Rec Scr Fac Low Low Fac Fac Gar Fac Upp Upp Res DSF Res Gar Res Gar Acc Gar Active Infowar (turns) 6403 | 77 2190 788 1261 . . . 84 . . . . 131 . 194 3 410 83 55 . . . . 1 2 . 15 436 673 . Sensors 2 | . . . . . . . . . . . . . . . . . . . . . . . . . . 2 . . . IFF 767 | . . . . . . . . . . . . 131 . 194 3 410 29 . . . . . . . . . . . . Terrain 2 | . . . . . . . . . . . . . . . . . . . . . . . . 2 . . . . . Seismic 4316 | 77 2190 788 1261 . . . . . . . . . . . . . . . . . . . . . . . . . . T.N.C. 1 | . . . 1 . . . . . . . . . . . . . . . . . . . . . . . . . . Machine Analysis 84 | . . . . . . . 84 . . . . . . . . . . . . . . . . . . . . . . Jamming 1237 | . . . . . . . . . . . . . . . . . 58 55 . . . . . . . 15 436 673 . ECM 1 | . . . . . . . . . . . . . . . . . . . . . . . 1 . . . . . . Robot Analysis Total 5 | . 2 . 2 . . . . . . 1 . . . . . . . . . . . . . . . . . . . Derelict Logs Recovered 7 | . . 3 . . . . . . . . . . . 1 . . . . . 2 1 . . . . . . . . Drone Launches 2 | . . . . . . . . . . . . . 2 . . . . . . . . . . . . . . . . Drone Recoveries . | . . . . . . . . . . . . . . . . . . . . . . . . . . . . . . Exploration | -11 -10 -10 -9 -9 -9 -8 -8 -8 -8 -8 -8 -8 -6 -6 -6 -5 -4 -4 -4 -4 -4 -3 -3 -2 -2 -2 -2 -1 -1 ------------- Run | Yrd Mat Min Mat Min Exi Min Mat Gar Mat Sto Rec Scr Fac Low Low Fac Fac Gar Fac Upp Upp Res DSF Res Gar Res Gar Acc Gar Turns Passed 34997 | 214 2566 807 3307 493 674 306 4028 3221 2468 2662 830 2108 1995 199 3 525 84 2603 608 692 53 100 297 425 779 357 1522 974 97 Spaces Moved 22317 | 109 1077 448 1639 277 420 108 1965 1507 1407 1390 486 1295 1049 382 9 964 157 1566 343 375 34 93 350 530 708 480 1652 1333 164 Core 23 | 9 . . . . . . . . . . . . . . . . . . . . . . . . . . . 4 10 Treads 15080 | 100 1077 448 1639 277 420 108 1965 1507 1407 1390 486 1295 1038 . . . . 1159 343 375 34 12 . . . . . . . Legs . | . . . . . . . . . . . . . . . . . . . . . . . . . . . . . . Wheels . | . . . . . . . . . . . . . . . . . . . . . . . . . . . . . . Hover 6861 | . . . . . . . . . . . . . 11 382 9 964 157 407 . . . 81 350 530 708 480 1652 1130 . Flight 353 | . . . . . . . . . . . . . . . . . . . . . . . . . . . . 199 154 Fastest Speed 28 | 50 160 160 160 160 160 160 160 160 156 160 160 160 94 36 36 31 31 31 160 160 160 28 28 45 45 45 40 34 45 Average Speed 125 | 154 203 160 160 160 160 160 160 178 159 160 160 160 159 36 36 31 31 129 160 160 160 66 59 54 45 47 50 40 45 Slowest Speed 320 | 160 240 160 160 160 160 160 162 245 160 160 160 160 320 94 36 31 31 320 160 160 160 217 145 145 145 145 157 136 50 Overloaded Moves . | . . . . . . . . . . . . . . . . . . . . . . . . . . . . . . Propulsion Burnouts . | . . . . . . . . . . . . . . . . . . . . . . . . . . . . . . Robots Hopped 2 | . . . . . . . . . . . . . . . . . . . . . . . . . . . . 2 . Potential Cave-ins 18 | . . . . . . . . . . . . . . . . . . . . . . . . . 5 . 3 10 . Cave-ins Triggered 1 | . . . . . . . . . . . . . . . . . . . . . . . . . 1 . . . . Exploration Rate (%) 51 | 5 99 99 96 48 89 17 82 98 86 95 97 60 19 50 5 17 5 98 13 47 7 2 95 10 44 13 99 25 12 Regions Visited 29 Branch Regions 11 Pre-discovered Areas 10 | . 1 2 . . 1 . . . . 1 4 . . . . . . . . . 1 . . . . . . . . Known Exits Taken 13 | . . . . . . . 1 . 1 1 . 1 1 . 1 1 1 . . 1 . 1 . 1 . 1 . 1 . Unknown Exits Taken 11 | 1 1 1 1 1 1 1 . . . . 1 . . 1 . . . . 1 . 1 . . . . . . . . Scrap Searched 17 | . . 1 . 1 . 1 . . . . . 9 . 3 . . . . . 2 . . . . . . . . . Spaces Dug 209 | . 9 . 5 . . . 35 1 17 5 7 . 9 19 . 17 7 2 3 3 . . . 6 12 9 9 34 . Terrain Destroyed 904 | . 17 7 38 . . . 89 206 43 35 7 . 77 37 . 31 7 148 4 59 . . . 20 14 9 10 46 . Melee 111 | . . . 5 . . . 35 . 7 5 7 . 9 1 . 17 7 1 . 2 . . . 6 . 9 . . . Projectile 108 | . . . 1 . . . 4 8 2 3 . . 1 . . . . 8 4 13 . . . . 14 . 10 40 . AOE 685 | . 17 7 32 . . . 50 198 34 27 . . 67 36 . 14 . 139 . 44 . . . 14 . . . 6 . Terrain Rammed . | . . . . . . . . . . . . . . . . . . . . . . . . . . . . . . Walls Destroyed . | . . . . . . . . . . . . . . . . . . . . . . . . . . . . . . Machines Disabled . | . . . . . . . . . . . . . . . . . . . . . . . . . . . . . . Actions | -11 -10 -10 -9 -9 -9 -8 -8 -8 -8 -8 -8 -8 -6 -6 -6 -5 -4 -4 -4 -4 -4 -3 -3 -2 -2 -2 -2 -1 -1 --------- Run | Yrd Mat Min Mat Min Exi Min Mat Gar Mat Sto Rec Scr Fac Low Low Fac Fac Gar Fac Upp Upp Res DSF Res Gar Res Gar Acc Gar Total 27342 | 131 1350 512 2088 311 423 228 2533 1816 1574 1707 511 1332 1262 422 8 1147 175 1990 378 424 33 140 433 632 1081 594 2222 1698 187 Wait 2481 | 1 139 43 253 27 . 113 261 92 67 188 6 . 108 . . 143 1 148 5 1 . 5 24 34 243 62 334 183 . Move 22279 | 108 1076 447 1638 276 419 107 1964 1505 1406 1389 485 1294 1049 381 8 963 156 1564 342 374 33 92 349 529 705 479 1649 1328 164 Hop 2 | . . . . . . . . . . . . . . . . . . . . . . . . . . . . 2 . Pick Up 185 | 5 29 1 21 . 1 . 37 10 5 5 . 5 4 2 . 1 . 24 2 2 . 2 7 3 4 3 6 6 . Fast Attach 183 | 7 4 . 7 . . . 9 8 6 13 2 11 4 3 . 5 4 16 . 2 . 3 7 4 8 7 36 17 . Attach 103 | . 2 1 4 . . . 12 5 1 5 . . 13 4 . 1 . 14 1 4 . 12 1 3 2 . 8 10 . Detach 79 | . 1 . 2 . . . 2 1 2 2 . 1 5 3 . 2 1 21 1 1 . 6 2 1 2 2 14 7 . Swap 283 | . 17 5 24 . 1 1 38 28 26 19 2 6 18 9 . 5 1 15 1 1 . 3 11 13 8 5 18 8 . Drop 271 | . 23 . 17 . 2 . 44 16 19 14 2 15 5 6 . 1 2 19 3 2 . 17 15 6 3 9 17 14 . Fire 1017 | 10 59 15 104 8 . 6 114 95 28 43 1 . 37 6 . 5 . 135 21 24 . . 7 25 68 17 104 85 . Melee 277 | . . . 17 . . . 52 28 9 29 13 . 14 8 . 21 10 6 . 6 . . 5 14 24 10 11 . . Ram 21 | . . . . . . . . . . . . . 1 . . . . . . . . . . . . . . 20 . Kick . | . . . . . . . . . . . . . . . . . . . . . . . . . . . . . . Crush 19 | . . . 1 . . 1 . . 5 . . . 4 . . . . . 2 6 . . . . . . . . . Escape Stasis 90 | . . . . . . . . 3 . . . . . . . . . 26 . . . . 3 . 14 . 22 18 4 Rewire 52 | . . . . . . . . 25 . . . . . . . . . 2 . 1 . . 2 . . . 3 . 19 Trap . | . . . . . . . . . . . . . . . . . . . . . . . . . . . . . . Miscellaneous . | . . . . . . . . . . . . . . . . . . . . . . . . . . . . . . Route ------- -11/Scrapyard -10/Materials (discovered 5 exits: *Mat x3 / [*Min] / [*Sub]) -10/Mines (discovered 3 exits: *Mat x2 / [*Sub]) -9/Materials (discovered 5 exits: *Mat x3 / [*Min x2]) -9/Mines -9/Exiles -8/Mines -8/Materials (discovered 5 exits: [*Fac x3] / *Sto / Gar) -8/Garrison (discovered 4 exits: *Mat x4) -8/Materials (discovered 6 exits: [*Fac x3] / *Sto x2 / Gar) -8/Storage (discovered 2 exits: [*Fac] / *Rec) -8/Recycling (discovered 2 exits: *Fac / *Scr) -8/Scraptown -6/Factory (discovered 6 exits: Fac x4 / *Low x2) -6/Lower Caves -6/Lower Caves -5/Factory (discovered 2 exits: *Fac x2) -4/Factory -4/Garrison (discovered 3 exits: *Fac x3) -4/Factory -4/Upper Caves -4/Upper Caves -3/Research -3/DSF -2/Research -2/Garrison -2/Research -2/Garrison (discovered 3 exits: *Acc x3) -1/Access -1/Garrison History --------- Turn | Location | Event 11 | -11/Scrapyard | Discovered new exit (range 16) 215 | -11/Scrapyard | Entered Materials 326 | -10/Materials | Build established: Mutant 638 | -10/Materials | Discovered new exit (range 8) 748 | -10/Materials | Discovered new exit (range 9) 978 | -10/Materials | Discovered new exit (range 8) 1555 | -10/Materials | Central database locked down 1588 | -10/Materials | Discovered new exit (range 10) 1730 | -10/Materials | Discovered new exit (range 8) 2379 | -10/Materials | Repaired Imp. Treads 2413 | -10/Materials | Repaired Imp. Treads 2440 | -10/Materials | Repaired Assault Rifle 2468 | -10/Materials | Repaired Lgt. Ion Engine 2781 | -10/Materials | Entered Mines 3076 | -10/Mines | Core integrity fell below 50% 3127 | -10/Mines | Received a Rocket Launcher from a helpful Derelict 3135 | -10/Mines | Learned Materials stockpile data 3171 | -10/Mines | Learned location of Storage (-8) 3175 | -10/Mines | Learned Materials terminal intel 3206 | -10/Mines | Discovered new exit (range 5) 3332 | -10/Mines | Discovered new exit (range 6) 3553 | -10/Mines | Discovered new exit (range 14) 3588 | -10/Mines | Entered Materials 3588 | -9/Materials | Evolved 2 slots: Propulsion x1, Utility x1 3590 | -9/Materials | Loaded intel: 12 terminal locations 4482 | -9/Materials | Discovered new exit (range 7) 4677 | -9/Materials | Discovered new exit (range 6) 4982 | -9/Materials | Repaired Med. Armor Plating 5112 | -9/Materials | Discovered new exit (range 7) 5857 | -9/Materials | Discovered new exit (range 16) 5903 | -9/Materials | Repaired Imp. Treads 5937 | -9/Materials | Repaired Imp. Treads 5970 | -9/Materials | Repaired Med. Armor Plating 6415 | -9/Materials | Central database locked down 6473 | -9/Materials | Discovered new exit (range 5) 6788 | -9/Materials | First assault squad dispatched 6895 | -9/Materials | Entered Mines 6973 | -9/Mines | Assisted by bots powering up and referring to "LRC-V3" 7059 | -9/Mines | Deemed a non-threat by the Exiles lab entrance 7061 | -9/Mines | Discovered new exit (range 5) 7152 | -9/Mines | Joined a pair of Derelicts in attacking an 0b10 outpost 7306 | -9/Mines | Assembled infested the area 7311 | -9/Mines | Assisted by a Guerilla fighting off Assembled 7388 | -9/Mines | Entered Exiles 7388 | -9/Exiles | Accompanied by 1 ally 7428 | -9/Exiles | Met 8R-AWN 7456 | -9/Exiles | Met EX-HEX 7524 | -9/Exiles | Met EX-DEC 7534 | -9/Exiles | Learned location of Zion (-6) 7585 | -9/Exiles | Met EX-BIN 7604 | -9/Exiles | Aligned with FarCom system 7606 | -9/Exiles | Given EX-Vault access code 7643 | -9/Exiles | Opened EX-Vault 7657 | -9/Exiles | Found YOLO Cannon 7691 | -9/Exiles | Warned to stay clear of 0b10 Research branches 7809 | -9/Exiles | Visited The Gauntlet 8043 | -9/Exiles | Discovered new exit (range 14) 8062 | -9/Exiles | Left Exiles lab with YOLO Cannon 8062 | -9/Exiles | Entered Mines 8062 | -8/Mines | Accompanied by 1 ally 8111 | -8/Mines | Discovered new exit (range 5) 8368 | -8/Mines | Entered Materials 8368 | -8/Materials | Accompanied by 1 ally 8368 | -8/Materials | Evolved 2 slots: Propulsion x1, Utility x1 8900 | -8/Materials | Central database locked down 9239 | -8/Materials | Discovered new exit (range 8) 9932 | -8/Materials | Build established: Scavenger-Mutant 10515 | -8/Materials | Repaired Imp. Assault Rifle 10720 | -8/Materials | Repaired Imp. Treads+ 10794 | -8/Materials | Discovered new exit (range 15) 10882 | -8/Materials | Discovered new exit (range 9) 11350 | -8/Materials | Discovered new exit (range 8) 11969 | -8/Materials | Build established: Mutant 12394 | -8/Materials | Identified exit to Garrison 12396 | -8/Materials | Entered Garrison 12500 | -8/Garrison | Triggered checkpoint 12550 | -8/Garrison | Garrison Relay disabled 12655 | -8/Garrison | Triggered checkpoint 12684 | -8/Garrison | Triggered checkpoint 12709 | -8/Garrison | Destroyed 10 combat bots 12776 | -8/Garrison | Triggered checkpoint 12890 | -8/Garrison | Discovered new exit (range 12) 12934 | -8/Garrison | Discovered new exit (range 6) 13110 | -8/Garrison | Triggered checkpoint 13398 | -8/Garrison | Build established: Scavenger-Mutant 13620 | -8/Garrison | Triggered checkpoint 13880 | -8/Garrison | Triggered checkpoint 13891 | -8/Garrison | Discovered new exit (range 11) 14028 | -8/Garrison | Triggered checkpoint 14310 | -8/Garrison | Triggered checkpoint 14401 | -8/Garrison | Triggered checkpoint 14446 | -8/Garrison | Triggered checkpoint 14727 | -8/Garrison | Discovered new exit (range 3) 14781 | -8/Garrison | Phase Generator disabled 14790 | -8/Garrison | Lost 3 allies 14922 | -8/Garrison | Triggered checkpoint 15203 | -8/Garrison | Installed Relay Interface Framework 15577 | -8/Garrison | Garrison Relay disabled 15617 | -8/Garrison | Entered Materials 15617 | -8/Materials | Accompanied by 6 allies 15897 | -8/Materials | Discovered new exit (range 16) 16009 | -8/Materials | Discovered new exit (range 16) 16219 | -8/Materials | Repaired Cooling System 16340 | -8/Materials | Build established: Hacker-Mutant 16542 | -8/Materials | Discovered new exit (range 4) 16700 | -8/Materials | Identified exit to Storage 16708 | -8/Materials | Discovered new exit (range 10) 16853 | -8/Materials | Watched by a mysterious "MATRIX" hacker. 16959 | -8/Materials | Identified exit to Garrison 17213 | -8/Materials | Met 7R-MNS 17514 | -8/Materials | Core integrity fell below 50% 18085 | -8/Materials | Entered Storage 18544 | -8/Storage | Discovered new exit (range 13) 18555 | -8/Storage | Used back door to open Recycling access 18609 | -8/Storage | Assisted by bots powering up and referring to "LRC-V3" 18903 | -8/Storage | Build established: Commander-Mutant 18987 | -8/Storage | Lost 3 allies 19093 | -8/Storage | Identified exit to Recycling 19303 | -8/Storage | System corruption reached 10% 19425 | -8/Storage | Repaired Med. Treads 19547 | -8/Storage | Learned location of Armory (-3) 19786 | -8/Storage | Build established: Hacker-Mutant 20285 | -8/Storage | Discovered new exit (range 15) 20692 | -8/Storage | Repaired Med. Treads 20715 | -8/Storage | Repaired Med. Treads 20747 | -8/Storage | Entered Recycling 20893 | -8/Recycling | Identified exit to Factory 21536 | -8/Recycling | Scanned before Scraplab entrance 21560 | -8/Recycling | Entered Scraplab 21573 | -8/Recycling | Discovered new exit (range 3) 21577 | -8/Recycling | Entered Scraptown 21577 | -8/Scraptown | System corruption cleaned by C-Scrubber 21818 | -8/Scraptown | Heard Great Nut preacher, LISTEN AND RECITE! 22209 | -8/Scraptown | Visited Bundlers 22333 | -8/Scraptown | Visited SPCMW 22651 | -8/Scraptown | Discovered exit to Factory (range 3) 22805 | -8/Scraptown | Visited Fellowship of the Rings 22839 | -8/Scraptown | Visited CR-KLE's Repair Center 22853 | -8/Scraptown | CR-KLE repaired 8 parts 23066 | -8/Scraptown | Visited Comm Corps 23481 | -8/Scraptown | Visited Awakened 23525 | -8/Scraptown | Visited TADAMA 23583 | -8/Scraptown | Turned away by UFD registrar 23685 | -8/Scraptown | Entered Factory 23685 | -6/Factory | Evolved 4 slots: Power x1, Propulsion x1, Utility x2 24615 | -6/Factory | Identified exit to Factory 24615 | -6/Factory | Identified exit to Lower Caves 24790 | -6/Factory | Cargo convoy interrupted 25061 | -6/Factory | Fabricated Imp. Airjet? 25680 | -6/Factory | Entered Lower Caves 25687 | -6/Lower Caves | Lost 5 parts (1p3n1u) 25749 | -6/Lower Caves | Learned 8 Factory zone layouts 25799 | -6/Lower Caves | Encountered a Warlord checkpoint 25818 | -6/Lower Caves | Found DCF Scrap (11 items) 25839 | -6/Lower Caves | Discovered new exit (range 15) 25879 | -6/Lower Caves | Entered another Lower Caves area 25879 | -6/Lower Caves | Discovered exit to Factory (range 5) 25880 | -6/Lower Caves | Encountered a Warlord checkpoint 25882 | -6/Lower Caves | Entered Factory 25882 | -5/Factory | Evolved 2 slots: Propulsion x1, Utility x1 25883 | -5/Factory | Identified exit to Factory 25947 | -5/Factory | Identified exit to DSF 25947 | -5/Factory | Discovered exit to Factory (range 10) 26171 | -5/Factory | Build established: Hacker-Scout 26264 | -5/Factory | Repaired Cooling System 26315 | -5/Factory | Repaired IFF Parser 26407 | -5/Factory | Entered another Factory area 26407 | -4/Factory | Evolved 2 slots: Utility x1, Weapon x1 26491 | -4/Factory | Identified exit to Garrison 26491 | -4/Factory | Entered Garrison 26542 | -4/Garrison | Garrison Relay disabled 26573 | -4/Garrison | Triggered checkpoint 26682 | -4/Garrison | Lost 3 parts (2p1w) 26691 | -4/Garrison | Triggered checkpoint 26704 | -4/Garrison | Expanded RIF knowledge: Structural Interface 26717 | -4/Garrison | Discovered new exit (range 12) 26744 | -4/Garrison | Triggered checkpoint 26752 | -4/Garrison | Garrison Relay disabled 26754 | -4/Garrison | Spotted Executioner 26754 | -4/Garrison | Spotted Executioner 27100 | -4/Garrison | Build established: Hacker-Mutant 27366 | -4/Garrison | Found Adv. Powered Armor 27369 | -4/Garrison | Found Adv. Powered Armor 27411 | -4/Garrison | Triggered checkpoint 27425 | -4/Garrison | Build established: Scavenger-Tank 27461 | -4/Garrison | Discovered new exit (range 10) 27513 | -4/Garrison | YOLO Cannon suddenly exploded 27514 | -4/Garrison | Core integrity fell below 50% 27544 | -4/Garrison | Lost 4 parts (2p1u1w) 27713 | -4/Garrison | Garrison Relay disabled 27915 | -4/Garrison | Triggered checkpoint 27915 | -4/Garrison | Triggered checkpoint 28035 | -4/Garrison | Triggered checkpoint 28101 | -4/Garrison | Garrison Relay disabled 28380 | -4/Garrison | Found embedded Infiltrators 28403 | -4/Garrison | Discovered new exit (range 10) 28479 | -4/Garrison | Triggered checkpoint 28534 | -4/Garrison | Garrison Relay disabled 28539 | -4/Garrison | Build established: Bothacker-Tank 28590 | -4/Garrison | Learned Factory security intel 29094 | -4/Garrison | Entered Factory 29094 | -4/Factory | Accompanied by 7 allies 29151 | -4/Factory | P-70 Sage assimilated allied Destroyer 7a 29188 | -4/Factory | Garrison activated, responded to threat 29344 | -4/Factory | First assault squad dispatched 29468 | -4/Factory | Lost 5 allies 29690 | -4/Factory | Discovered new exit (range 8) 29702 | -4/Factory | Entered Upper Caves 29756 | -4/Upper Caves | Identified exit to Upper Caves 29796 | -4/Upper Caves | Learned Research stockpile data 30311 | -4/Upper Caves | Build established: Bothacker-Mutant 30394 | -4/Upper Caves | Entered another Upper Caves area 30404 | -4/Upper Caves | Discovered new exit (range 14) 30436 | -4/Upper Caves | Learned location of Quarantine (-2) 30447 | -4/Upper Caves | Entered Research 30447 | -3/Research | Evolved 2 slots: Utility x2 30546 | -3/Research | Identified exit to DSF 30547 | -3/Research | Entered DSF 30588 | -3/DSF | Additional patrols routed to DSF 30600 | -3/DSF | Found Prototype Device 30600 | -3/DSF | Identified Thermal Barrier 30606 | -3/DSF | Found Adv. Powered Armor 30628 | -3/DSF | Discovered new exit (range 16) 30696 | -3/DSF | Found Prototype Protection 30696 | -3/DSF | Identified Centrium Heavy Armor Plating 30844 | -3/DSF | Entered Research 30844 | -2/Research | Accompanied by 3 allies 30844 | -2/Research | Evolved 2 slots: Utility x2 31040 | -2/Research | Lost 3 allies 31172 | -2/Research | Spotted B-90 Cyclops 31265 | -2/Research | Identified exit to Garrison 31269 | -2/Research | Entered Garrison 31295 | -2/Garrison | Garrison Relay disabled 31381 | -2/Garrison | Triggered checkpoint 31490 | -2/Garrison | Spotted B-90 Cyclops 31491 | -2/Garrison | Triggered checkpoint 31547 | -2/Garrison | Lost 6 allies 31789 | -2/Garrison | Crushed by falling debris 31790 | -2/Garrison | System corruption reached 10% 31814 | -2/Garrison | Discovered new exit (range 10) 31820 | -2/Garrison | Lost 3 parts (3u) 31889 | -2/Garrison | Learned Research security intel 31894 | -2/Garrison | Garrison Relay disabled 31911 | -2/Garrison | Triggered checkpoint 31949 | -2/Garrison | Triggered checkpoint 32048 | -2/Garrison | Entered Research 32048 | -2/Research | Accompanied by 2 allies 32404 | -2/Research | Identified exit to Garrison 32405 | -2/Research | Entered Garrison 32421 | -2/Garrison | Rewired B-75 Beast 32429 | -2/Garrison | Rewired B-75 Beast 32461 | -2/Garrison | Attached CPS modules to B-90 Cyclops. 32543 | -2/Garrison | Triggered checkpoint 32544 | -2/Garrison | Garrison Relay disabled 32582 | -2/Garrison | Spotted Executioner 32582 | -2/Garrison | Spotted Executioner 32719 | -2/Garrison | Triggered checkpoint 32719 | -2/Garrison | Spotted B-90 Cyclops 32719 | -2/Garrison | Triggered checkpoint 32790 | -2/Garrison | Lost 7 allies 32893 | -2/Garrison | Triggered checkpoint 32940 | -2/Garrison | Garrison Relay disabled 32992 | -2/Garrison | Discovered new exit (range 10) 33083 | -2/Garrison | Found Unknown Hackware 33083 | -2/Garrison | Identified Relay Coupler [Proto] 33284 | -2/Garrison | Lost 8 parts (1p1n4u2w) 33301 | -2/Garrison | Found Relay Coupler [Proto] 33303 | -2/Garrison | Found Relay Coupler [Proto] 33306 | -2/Garrison | Found Relay Coupler [Proto] 33441 | -2/Garrison | Assimilated Executioner with formatsys_high 33445 | -2/Garrison | Assimilated Executioner with formatsys_high 33497 | -2/Garrison | Allies destroyed B-90 Cyclops 33574 | -2/Garrison | Garrison Relay disabled 33587 | -2/Garrison | Triggered checkpoint 33618 | -2/Garrison | Discovered new exit (range 14) 33624 | -2/Garrison | Discovered new exit (range 38) 33624 | -2/Garrison | Discovered new exit (range 62) 33624 | -2/Garrison | Discovered new exit (range 7) 33680 | -2/Garrison | Expanded RIF knowledge: Watcher Feeds 33691 | -2/Garrison | Garrison Relay disabled 33833 | -2/Garrison | Build established: Scavenger-Skirmisher 33927 | -2/Garrison | Entered Access 33927 | -1/Access | Accompanied by 2 allies 33927 | -1/Access | Evolved 2 slots: Propulsion x1, Utility x1 34346 | -1/Access | Found Unknown Device 34346 | -1/Access | Identified Quantum Capacitor 34427 | -1/Access | First assault squad dispatched 34483 | -1/Access | Spotted B-99 Colossus 34484 | -1/Access | Spotted B-99 Colossus 34546 | -1/Access | Lost 7 parts (2p2n1u2w) 34615 | -1/Access | System corruption reached 10% 34642 | -1/Access | Lost 5 parts (1n3u1w) 34776 | -1/Access | Lost 9 parts (1p2n4u2w) 34804 | -1/Access | Core integrity fell below 50% 34842 | -1/Access | Lost 4 parts (3u1w) 34848 | -1/Access | Identified exit to Garrison 34899 | -1/Access | Core integrity fell below 20% 34901 | -1/Access | Entered Garrison 34969 | -1/Garrison | Triggered checkpoint 34993 | -1/Garrison | System corruption reached 30% 34998 | -1/Garrison | Destroyed by X-87 Electro with Compact HERF Cannon Last Messages --------------- 34911_ System corrupted: Matter fused (-7). 34911_ RIF reveals location of hidden door. 34911_ RIF reveals location of phase wall. 34927_ System corrupted: Component data lost. 34935_ RIF reveals location of phase wall. 34964_ System corrupted: Matter fused (-5). 34965_ RIF reveals location of phase wall. 34969_ Beams of light sweep through the air. An alarm sounds. 34970_ Triggered Stasis Trap. 34970_ A bubble of rippling energy engulfs the area. 34970_ Field strength at 85. 34971_ Field strength at 70. 34972_ Field strength at 46. 34973_ Field strength at 22. 34974_ Field strength at 7. 34974_ Stasis field depleted. 34974_ Impulse Thruster Array destroyed. 34979_ Attempting to rewire G-73 Enforcer. 34981_ GS:QL:ITN 6ILCKU%>B/G:N 34981_ Attempting to rewire G-73 Enforcer. Map ----- +----------------------------------------------------+ | ???????????????# #??????????????????# #????????? | | ???????????????# #??????????????????# #????????? | | ???????????????# #??????????????????# #????????? | | ???????????????# #???????#####??????# #????????? | | ???????????????# #???????# #??????# #????????? | | ???????????????# ######### ########++#????????? | | ???????????????# #????????? | | ???????????????# #????????? | | ???????????????####################### #????????? | | ?????????????????????????????????????# #????????? | | ?????????????????????????????????????# #????????? | | ?????????????????????????????????????" #????????? | | ????????????????????????????????????Y" #????????? | | ?????????????????????????????????????" #????????? | | ?????????????????????????????????????# #????????? | | ?????????????????????????????????????# #????????? | | ?????????????????????????????????????# #????????? | | ???????????????????????????????#####?# #????????? | | ???????????????????????????????# #?# #????????? | | ???????????????????????????##### ### #????????? | | ???????????????????????##### #????????? | | ???????????????????????# + #????????? | | ???????????????????????# ####### ######????????? | | ???????????????????????# #????#"""""#????????????? | | ??????????????????????##x##???#######????????????? | | ??????????????????????# @#??????????????????????? | | ??????????????????????#ggg#??????????????????????? | | ??????????????????????#####??????????????????????? | | ?????????????????????????????????????????????????? | | ?????????????????????????????????????????????????? | | ?????????????????????????????????????????????????? | | | | | | | | | | | | | | | | | | | | | | | | | | | | | | | | | | | | | | | +----------------------------------------------------+ Best States ------------- Heat Dissipation 137 Coolant Potential 100 Energy Generation 57 Energy Capacity 600 Matter Stores 343 Matter Capacity 400 Sight Range 16 Terrain Scan Density 10 Jamming Range 16 Power Amplification 30 Additional Mass Support 12 EM Shielding 3 Armor Coverage 800 Resistance: TH 50 Resistance: EM 25 Propulsion Shielding 33 Weapon Shielding 33 Phase Shifting 10 Evasion (%) 78 Targeting Accuracy 16 Recoil Reduction 6 Particle Charging 15 Offensive Hacking 20 Defensive Hacking 25 Relay Coupler Types 6 Relay Coupler Value 149 Authchip Count 1 Item Schematics ----------------- Hacking Suite | -8/Materials | Scanalyzed Imp. Airjet | -8/Materials | Scanalyzed Airjet | -8/Recycling | Hacked Med. Armor Plating | -8/Recycling | Hacked Cmb. Airjet | -6/Factory | Hacked Robot Schematics ------------------ None Fabricated ------------ Imp. Airjet | x1 | -6/Factory Repaired ---------- Imp. Treads | 66% | -10/Materials Imp. Treads | 72% | -10/Materials Assault Rifle | 64% | -10/Materials Lgt. Ion Engine | 32% | -10/Materials Med. Armor Plating | 2% | -9/Materials Imp. Treads | 51% | -9/Materials Imp. Treads | 57% | -9/Materials Med. Armor Plating | 48% | -9/Materials Imp. Assault Rifle | 67% | -8/Materials Imp. Treads | 7% | -8/Materials Cooling System | 60% | -8/Materials Med. Treads | 55% | -8/Storage Med. Treads | 31% | -8/Storage Med. Treads | 37% | -8/Storage Cooling System | 20% | -5/Factory IFF Parser | 35% | -5/Factory Studied --------- Imp. Treads | -9/Materials | Hacked Rocket Launcher | -9/Materials | Hacked Hammer | -9/Materials | Hacked Katana | -8/Materials | Hacked Alien Tech Used ----------------- None Achievements -------------- Analysis Probe Drive-By Hack The Planet Hammer Time Into The Breach Jackpot Join The Dark Side Mindtrick Powerful Protocols Satisfying Versatile Window Shopping YOLO You Will Be Upgraded Challenges ------------ None Game ------ Seed VisualReactionFlail Manual? 0 Play Time 05:44:11 Cumulative 175.8 hours Start 2026.02.19 @ 14:19:02 End 2026.02.20 @ 22:22:42 Sessions 14 Manual Loads 0 Difficulty Rogue Special Mode None Game No. 103 Rogue 99 Adventurer 4 Explorer 0 Win Type - Total 3 Types 2/0/0/1/0/0/0/0/0/0 Lore% 69 Gallery% 58 Achievement% 37 Wizard Run 0 Options --------- Layout 0 ASCII 0 Keyboard 1 Movement Vi Keybinds 0 Fullscreen 1 Font 24/Smallcaps Map View 76x50 Zoom Use 0% Tactical HUD 1 Map Filters NONE Filters NONE Steam 1 RUN: f80651a8-1e76-4e42-b157-bcb4b70f9f45